[Event "Djerba Festival Blitz 2025"]
[Site "Djerba"]
[Date "2025.02.21"]
[Round "4.1"]
[White "Maghsoodloo, Parham"]
[Black "Thorfinnsson, Bjorn"]
[Result "1-0"]
[ECO "C60"]
[WhiteElo "2680"]
[BlackElo "2377"]
[PlyCount "81"]
[EventDate "2025.02.15"]
[EventType "swiss"]
[EventCountry "TUN"]
[TimeControl "180+3"]

1. e4 {[%emt 0:00:04]} e5 {[%emt 0:00:03]} 2. Nf3 {[%emt 0:00:03]} Nc6 {[%emt 0:00:02]} 3. Bb5 {[%emt 0:00:04]} Nge7 {[%emt 0:00:02]} 4. O-O {[%emt 0:00:09]} d6 {[%emt 0:00:04]} 5. Re1 {[%emt 0:00:20]} Bd7 {[%emt 0:00:03]} 6. c3 {[%emt 0:00:04]} Ng6 {[%emt 0:00:02]} 7. d4 {[%emt 0:00:04]} Be7 {[%emt 0:00:03]} 8. a4 {[%emt 0:00:05]} O-O {[%emt 0:00:04]} 9. Be3 {[%emt 0:00:03]} a6 {[%emt 0:00:13]} 10. Bc4 {[%emt 0:00:09]} Kh8 {[%emt 0:00:05]} 11. Nbd2 {[%emt 0:00:03]} f5 {[%emt 0:00:02]} 12. exf5 {[%emt 0:00:05]} Bxf5 {[%emt 0:00:03]} 13. Bd5 {[%emt 0:00:03]} exd4 {[%emt 0:00:08]} 14. Bxd4 {[%emt 0:00:19]} Nf4 {[%emt 0:00:38]} 15. Be4 {[%emt 0:00:03]} Nxd4 {[%emt 0:00:06]} 16. Nxd4 {[%emt 0:02:13]} Bxe4 {[%emt 0:00:10]} 17. Nxe4 {[%emt 0:00:00]} Qd7 {[%emt 0:00:09]} 18. Ne2 {[%emt 0:00:00]} d5 {[%emt 0:00:15]} 19. Nxf4 {[%emt 0:00:00]} Rxf4 {[%emt 0:00:03]} 20. g3 {[%emt 0:00:00]} Rf7 {[%emt 0:00:07]} 21. c4 {[%emt 0:00:00]} Rd8 {[%emt 0:00:06]} 22. cxd5 {[%emt 0:00:00]} Qxd5 {[%emt 0:00:03]} 23. Qc2 {[%emt 0:00:00]} c6 {[%emt 0:00:18]} 24. Rad1 {[%emt 0:00:00]} Qf5 {[%emt 0:00:02]} 25. Qb3 {[%emt 0:00:00]} Rxd1 {[%emt 0:00:07]} 26. Rxd1 {[%emt 0:00:00]} h6 {[%emt 0:00:11]} 27. Re1 {[%emt 0:00:14]} b5 {[%emt 0:00:09]} 28. axb5 {[%emt 0:00:03]} axb5 {[%emt 0:00:04]} 29. Kg2 {[%emt 0:00:02]} Rf8 {[%emt 0:00:17]} 30. f3 {[%emt 0:00:03]} c5 {[%emt 0:00:07]} 31. g4 {[%emt 0:00:17]} Qf4 {[%emt 0:00:09]} 32. Rf1 {[%emt 0:00:01]} b4 {[%emt 0:00:15]} 33. Qe6 {[%emt 0:00:02]} Bf6 {[%emt 0:00:06]} 34. b3 {[%emt 0:00:02]} Bd4 {[%emt 0:00:03]} 35. Qc4 {[%emt 0:00:06]} Qe3 {[%emt 0:00:11]} 36. Qc2 {[%emt 0:00:10]} Rf4 {[%emt 0:00:06]} 37. Ng3 {[%emt 0:00:00]} Qc3 {[%emt 0:00:06]} 38. Qd1 {[%emt 0:00:00]} Rf8 {[%emt 0:00:04]} 39. Re1 {[%emt 0:00:02]} Be5 {[%emt 0:00:06]} 40. Nf5 {[%emt 0:00:03]} Qa1 {[%emt 0:00:07]} 41. Qxa1 {[%emt 0:00:03]} 1-0

[Event "Djerba Festival Blitz 2025"]
[Site "Djerba"]
[Date "2025.02.21"]
[Round "4.2"]
[White "Stopa, Jacek"]
[Black "Moussard, Jules"]
[Result "1-0"]
[ECO "D35"]
[WhiteElo "2310"]
[BlackElo "2595"]
[PlyCount "93"]
[EventDate "2025.02.15"]
[EventType "swiss"]
[EventCountry "TUN"]
[TimeControl "180+3"]

1. d4 {[%emt 0:00:04]} Nf6 {[%emt 0:00:03]} 2. c4 {[%emt 0:00:02]} e6 {[%emt 0:00:01]} 3. Nc3 {[%emt 0:00:02]} d5 {[%emt 0:00:02]} 4. cxd5 {[%emt 0:00:02]} exd5 {[%emt 0:00:02]} 5. Bg5 {[%emt 0:00:02]} c6 {[%emt 0:00:02]} 6. e3 {[%emt 0:00:02]} h6 {[%emt 0:00:02]} 7. Bh4 {[%emt 0:00:02]} Be7 {[%emt 0:00:02]} 8. Bd3 {[%emt 0:00:02]} O-O {[%emt 0:00:02]} 9. Nge2 {[%emt 0:00:02]} Ne8 {[%emt 0:00:03]} 10. Bxe7 {[%emt 0:00:08]} Qxe7 {[%emt 0:00:02]} 11. O-O {[%emt 0:00:03]} Nd6 {[%emt 0:00:02]} 12. Qd2 {[%emt 0:00:04]} Bf5 {[%emt 0:00:07]} 13. Rae1 {[%emt 0:00:30]} Re8 {[%emt 0:00:05]} 14. Bxf5 {[%emt 0:00:12]} Nxf5 {[%emt 0:00:04]} 15. Nd1 {[%emt 0:00:16]} Nd7 {[%emt 0:00:08]} 16. Nec3 {[%emt 0:00:02]} Qg5 {[%emt 0:00:13]} 17. f3 {[%emt 0:00:13]} Nf6 {[%emt 0:00:43]} 18. Rf2 {[%emt 0:00:06]} Rad8 {[%emt 0:00:08]} 19. Qd3 {[%emt 0:00:36]} h5 {[%emt 0:00:06]} 20. Rfe2 {[%emt 0:00:09]} h4 {[%emt 0:00:12]} 21. Nf2 {[%emt 0:00:02]} Nh5 {[%emt 0:00:11]} 22. Nh3 {[%emt 0:00:06]} Qf6 {[%emt 0:00:03]} 23. b4 {[%emt 0:00:06]} a6 {[%emt 0:00:07]} 24. a4 {[%emt 0:00:03]} b5 {[%emt 0:00:05]} 25. Ra1 {[%emt 0:00:15]} g6 {[%emt 0:00:06]} 26. axb5 {[%emt 0:00:06]} axb5 {[%emt 0:00:02]} 27. Ra6 {[%emt 0:00:07]} Re6 {[%emt 0:00:03]} 28. Nf2 {[%emt 0:00:07]} Qe7 {[%emt 0:00:08]} 29. Ng4 {[%emt 0:00:27]} f6 {[%emt 0:00:34]} 30. Nh6+ {[%emt 0:00:15]} Nxh6 {[%emt 0:00:10]} 31. Qxg6+ {[%emt 0:00:02]} Ng7 {[%emt 0:00:09]} 32. Qxh6 {[%emt 0:00:02]} Re8 {[%emt 0:00:18]} 33. e4 {[%emt 0:00:07]} Qxb4 {[%emt 0:00:03]} 34. Qd2 {[%emt 0:00:05]} Nf5 {[%emt 0:00:07]} 35. Nxd5 {[%emt 0:00:06]} Qxd4+ {[%emt 0:00:18]} 36. Kf1 {[%emt 0:00:07]} Qe5 {[%emt 0:00:14]} 37. Nf4 {[%emt 0:00:07]} Rd6 {[%emt 0:00:02]} 38. Qc1 {[%emt 0:00:05]} Red8 {[%emt 0:00:02]} 39. Re1 {[%emt 0:00:02]} b4 {[%emt 0:00:03]} 40. Rb6 {[%emt 0:00:04]} Nd4 {[%emt 0:00:03]} 41. Ng6 {[%emt 0:00:02]} Qxh2 {[%emt 0:00:02]} 42. Qh6 {[%emt 0:00:03]} Nf5 {[%emt 0:00:04]} 43. Qh8+ {[%emt 0:00:02]} Kf7 {[%emt 0:00:01]} 44. Rb7+ {[%emt 0:00:01]} Kxg6 {[%emt 0:00:07]} 45. Qh7+ {[%emt 0:00:03]} Kg5 {[%emt 0:00:02]} 46. Qxf5+ {[%emt 0:00:04]} Kh6 {[%emt 0:00:01]} 47. Rh7# {[%emt 0:00:00]} 1-0

[Event "Djerba Festival Blitz 2025"]
[Site "Djerba"]
[Date "2025.02.21"]
[Round "4.3"]
[White "Dardha, Daniel"]
[Black "Njili, Kamel"]
[Result "1-0"]
[ECO "B90"]
[WhiteElo "2652"]
[BlackElo "2406"]
[PlyCount "73"]
[EventDate "2025.02.15"]
[EventType "swiss"]
[EventCountry "TUN"]
[TimeControl "180+3"]

1. e4 {[%emt 0:00:04]} c5 {[%emt 0:00:03]} 2. Nf3 {[%emt 0:00:02]} d6 {[%emt 0:00:02]} 3. d4 {[%emt 0:00:03]} cxd4 {[%emt 0:00:02]} 4. Nxd4 {[%emt 0:00:02]} Nf6 {[%emt 0:00:02]} 5. Nc3 {[%emt 0:00:02]} a6 {[%emt 0:00:02]} 6. Bd3 {[%emt 0:00:04]} Nc6 {[%emt 0:00:50]} 7. Nxc6 {[%emt 0:00:03]} bxc6 {[%emt 0:00:02]} 8. O-O {[%emt 0:00:04]} g6 {[%emt 0:00:11]} 9. b3 {[%emt 0:00:05]} Bg7 {[%emt 0:00:02]} 10. Bb2 {[%emt 0:00:02]} O-O {[%emt 0:02:17]} 11. Na4 {[%emt 0:00:05]} d5 {[%emt 0:00:00]} 12. Qe2 {[%emt 0:00:09]} a5 {[%emt 0:00:00]} 13. exd5 {[%emt 0:00:04]} cxd5 {[%emt 0:00:00]} 14. Rfe1 {[%emt 0:00:02]} e6 {[%emt 0:00:00]} 15. Rad1 {[%emt 0:00:06]} Qc7 {[%emt 0:00:04]} 16. Be5 {[%emt 0:00:02]} Qa7 {[%emt 0:00:02]} 17. c4 {[%emt 0:00:03]} Ba6 {[%emt 0:00:07]} 18. Bxf6 {[%emt 0:00:06]} Bxf6 {[%emt 0:00:03]} 19. cxd5 {[%emt 0:00:03]} Bxd3 {[%emt 0:00:03]} 20. Qxd3 {[%emt 0:00:02]} exd5 {[%emt 0:00:03]} 21. Qxd5 {[%emt 0:00:02]} Rad8 {[%emt 0:00:04]} 22. Qf3 {[%emt 0:00:02]} Bg7 {[%emt 0:00:03]} 23. g3 {[%emt 0:00:03]} Qc7 {[%emt 0:00:04]} 24. Kg2 {[%emt 0:00:02]} Qc2 {[%emt 0:00:04]} 25. Rxd8 {[%emt 0:00:04]} Rxd8 {[%emt 0:00:02]} 26. Re7 {[%emt 0:00:02]} Rf8 {[%emt 0:00:03]} 27. Re2 {[%emt 0:00:09]} Qc7 {[%emt 0:00:03]} 28. h4 {[%emt 0:00:11]} h5 {[%emt 0:00:02]} 29. Re4 {[%emt 0:00:10]} Rd8 {[%emt 0:00:03]} 30. Rc4 {[%emt 0:00:02]} Qe7 {[%emt 0:00:03]} 31. Nc3 {[%emt 0:00:06]} Qa3 {[%emt 0:00:03]} 32. Rc7 {[%emt 0:00:04]} Rf8 {[%emt 0:00:03]} 33. Qe2 {[%emt 0:00:20]} Qd6 {[%emt 0:00:06]} 34. Qc4 {[%emt 0:00:06]} Qa3 {[%emt 0:00:04]} 35. Ne4 {[%emt 0:00:07]} Qxa2 {[%emt 0:00:03]} 36. Ng5 {[%emt 0:00:02]} Qd2 {[%emt 0:00:06]} 37. Rxf7 {[%emt 0:00:03]} 1-0

[Event "Djerba Festival Blitz 2025"]
[Site "Djerba"]
[Date "2025.02.21"]
[Round "4.4"]
[White "Kobalia, Mikhail"]
[Black "Willems, Niels"]
[Result "0-1"]
[ECO "B90"]
[WhiteElo "2538"]
[BlackElo "2414"]
[PlyCount "64"]
[EventDate "2025.02.15"]
[EventType "swiss"]
[EventCountry "TUN"]
[TimeControl "180+3"]

1. e4 {[%emt 0:00:03]} c5 {[%emt 0:00:05]} 2. Nf3 {[%emt 0:00:02]} d6 {[%emt 0:00:02]} 3. d4 {[%emt 0:00:02]} cxd4 {[%emt 0:00:02]} 4. Nxd4 {[%emt 0:00:01]} Nf6 {[%emt 0:00:02]} 5. Nc3 {[%emt 0:00:02]} a6 {[%emt 0:00:02]} 6. Be3 {[%emt 0:00:02]} e5 {[%emt 0:00:03]} 7. Nb3 {[%emt 0:00:02]} Be7 {[%emt 0:00:02]} 8. Qd2 {[%emt 0:00:02]} Ng4 {[%emt 0:00:13]} 9. g3 {[%emt 0:00:03]} Be6 {[%emt 0:00:06]} 10. O-O-O {[%emt 0:00:04]} Nd7 {[%emt 0:00:12]} 11. Kb1 {[%emt 0:00:02]} Rc8 {[%emt 0:00:14]} 12. f4 {[%emt 0:00:03]} Nxe3 {[%emt 0:00:04]} 13. Qxe3 {[%emt 0:00:03]} b5 {[%emt 0:00:07]} 14. f5 {[%emt 0:00:02]} Bc4 {[%emt 0:00:04]} 15. h4 {[%emt 0:00:10]} Nb6 {[%emt 0:00:20]} 16. Na5 {[%emt 0:00:10]} Bxf1 {[%emt 0:00:10]} 17. Rhxf1 {[%emt 0:00:02]} Qc7 {[%emt 0:00:11]} 18. Rf2 {[%emt 0:00:09]} d5 {[%emt 0:00:17]} 19. Qe1 {[%emt 0:00:30]} Bb4 {[%emt 0:00:20]} 20. Nb3 {[%emt 0:01:14]} Bxc3 {[%emt 0:00:24]} 21. bxc3 {[%emt 0:00:03]} Na4 {[%emt 0:00:02]} 22. Rxd5 {[%emt 0:00:21]} Nxc3+ {[%emt 0:00:03]} 23. Kb2 {[%emt 0:00:05]} Nxd5 {[%emt 0:00:03]} 24. exd5 {[%emt 0:00:02]} O-O {[%emt 0:00:13]} 25. f6 {[%emt 0:00:02]} Rfd8 {[%emt 0:00:07]} 26. Qe3 {[%emt 0:00:02]} gxf6 {[%emt 0:00:43]} 27. Rxf6 {[%emt 0:00:04]} Qxc2+ {[%emt 0:00:04]} 28. Ka1 {[%emt 0:00:11]} Rxd5 {[%emt 0:00:06]} 29. Qg5+ {[%emt 0:00:06]} Kh8 {[%emt 0:00:09]} 30. Rf1 {[%emt 0:00:06]} Qc3+ {[%emt 0:00:00]} 31. Kb1 {[%emt 0:00:02]} Qd3+ {[%emt 0:00:00]} 32. Kb2 {[%emt 0:00:02]} Qxf1 {[%emt 0:00:01]} 0-1

[Event "Djerba Festival Blitz 2025"]
[Site "Djerba"]
[Date "2025.02.21"]
[Round "4.5"]
[White "Viers, Emmanuel"]
[Black "Maurizzi, Marc`Andria"]
[Result "0-1"]
[ECO "A46"]
[WhiteElo "2072"]
[BlackElo "2581"]
[PlyCount "60"]
[EventDate "2025.02.15"]
[EventType "swiss"]
[EventCountry "TUN"]
[TimeControl "180+3"]

1. d4 {[%emt 0:00:04]} Nf6 {[%emt 0:00:02]} 2. Nc3 {[%emt 0:00:02]} e6 {[%emt 0:00:03]} 3. Nf3 {[%emt 0:00:03]} c5 {[%emt 0:00:05]} 4. dxc5 {[%emt 0:00:03]} Bxc5 {[%emt 0:00:02]} 5. e4 {[%emt 0:00:05]} d6 {[%emt 0:00:03]} 6. Bd3 {[%emt 0:00:05]} O-O {[%emt 0:00:03]} 7. O-O {[%emt 0:00:02]} a6 {[%emt 0:00:03]} 8. Qe2 {[%emt 0:00:13]} Nbd7 {[%emt 0:00:02]} 9. Bg5 {[%emt 0:00:10]} Qc7 {[%emt 0:00:04]} 10. Rad1 {[%emt 0:00:05]} b5 {[%emt 0:00:28]} 11. a3 {[%emt 0:00:30]} Bb7 {[%emt 0:00:03]} 12. Rfe1 {[%emt 0:00:30]} e5 {[%emt 0:00:09]} 13. h3 {[%emt 0:00:50]} h6 {[%emt 0:00:05]} 14. Be3 {[%emt 0:00:14]} Rac8 {[%emt 0:00:02]} 15. Nh2 {[%emt 0:00:03]} Rfd8 {[%emt 0:00:08]} 16. Ng4 {[%emt 0:00:04]} Nxg4 {[%emt 0:00:02]} 17. Qxg4 {[%emt 0:00:04]} Nf6 {[%emt 0:00:02]} 18. Qf5 {[%emt 0:00:06]} Qe7 {[%emt 0:00:07]} 19. Bxc5 {[%emt 0:00:31]} Rxc5 {[%emt 0:00:01]} 20. Re3 {[%emt 0:00:03]} Nh7 {[%emt 0:00:17]} 21. Nd5 Bxd5 {[%emt 0:00:03]} 22. exd5 {[%emt 0:00:06]} g6 {[%emt 0:00:02]} 23. Qf3 {[%emt 0:00:03]} Kg7 {[%emt 0:00:06]} 24. Bf1 {[%emt 0:00:04]} Rxc2 {[%emt 0:00:03]} 25. Rb3 {[%emt 0:00:03]} Rdc8 {[%emt 0:00:05]} 26. a4 {[%emt 0:00:04]} bxa4 {[%emt 0:00:02]} 27. Rb6 {[%emt 0:00:02]} Ng5 {[%emt 0:00:05]} 28. Qa3 {[%emt 0:00:07]} R8c5 {[%emt 0:00:11]} 29. Qxa4 {[%emt 0:00:05]} Qf6 {[%emt 0:00:02]} 30. Qh4 {[%emt 0:00:05]} Nf3+ {[%emt 0:00:03]} 0-1

[Event "Djerba Festival Blitz 2025"]
[Site "Djerba"]
[Date "2025.02.21"]
[Round "4.6"]
[White "Oro, Faustino"]
[Black "Boudriga, Mohamed Ali"]
[Result "1-0"]
[ECO "A30"]
[WhiteElo "2447"]
[BlackElo "2323"]
[PlyCount "55"]
[EventDate "2025.02.15"]
[EventType "swiss"]
[EventCountry "TUN"]
[TimeControl "180+3"]

1. Nf3 {[%emt 0:00:07]} Nf6 {[%emt 0:00:07]} 2. c4 {[%emt 0:00:02]} e6 {[%emt 0:00:07]} 3. g3 {[%emt 0:00:02]} b6 {[%emt 0:00:08]} 4. Bg2 {[%emt 0:00:03]} Bb7 {[%emt 0:00:01]} 5. O-O {[%emt 0:00:04]} c5 {[%emt 0:00:06]} 6. b3 {[%emt 0:00:12]} Be7 {[%emt 0:00:05]} 7. Bb2 {[%emt 0:00:02]} O-O {[%emt 0:00:03]} 8. d4 {[%emt 0:00:02]} cxd4 {[%emt 0:00:05]} 9. Qxd4 {[%emt 0:00:03]} Nc6 {[%emt 0:00:32]} 10. Qd1 {[%emt 0:00:03]} d5 {[%emt 0:00:06]} 11. Ne5 {[%emt 0:00:03]} Rc8 {[%emt 0:00:10]} 12. Nd2 {[%emt 0:00:23]} Qc7 {[%emt 0:00:13]} 13. Nd3 {[%emt 0:00:13]} Rfd8 {[%emt 0:00:04]} 14. Rc1 {[%emt 0:00:12]} Qb8 {[%emt 0:00:01]} 15. Bxf6 {[%emt 0:00:09]} Bxf6 {[%emt 0:00:08]} 16. cxd5 {[%emt 0:00:02]} exd5 {[%emt 0:00:07]} 17. Nf3 {[%emt 0:00:12]} d4 {[%emt 0:00:24]} 18. Qd2 {[%emt 0:00:13]} Ne7 {[%emt 0:00:29]} 19. Nf4 {[%emt 0:00:10]} g6 {[%emt 0:00:12]} 20. Rxc8 {[%emt 0:00:13]} Qxc8 {[%emt 0:00:03]} 21. Rd1 {[%emt 0:00:04]} Nf5 {[%emt 0:00:31]} 22. Ne1 {[%emt 0:00:02]} Bxg2 {[%emt 0:00:03]} 23. Kxg2 {[%emt 0:00:04]} Nd6 {[%emt 0:00:03]} 24. Qd3 {[%emt 0:00:11]} Qb7+ {[%emt 0:00:02]} 25. Kg1 {[%emt 0:00:19]} Rc8 {[%emt 0:00:20]} 26. e3 {[%emt 0:00:12]} Rc3 {[%emt 0:00:04]} 27. Qe2 {[%emt 0:00:05]} Qe4 {[%emt 0:00:06]} 28. exd4 {[%emt 0:00:03]} 1-0

[Event "Djerba Festival Blitz 2025"]
[Site "Djerba"]
[Date "2025.02.21"]
[Round "4.9"]
[White "Amdouni, Zoubaier"]
[Black "Chelly, Yahya"]
[Result "0-1"]
[ECO "B13"]
[WhiteElo "2229"]
[BlackElo "2106"]
[PlyCount "80"]
[EventDate "2025.02.15"]
[EventType "swiss"]
[EventCountry "TUN"]
[TimeControl "180+3"]

1. e4 {[%emt 0:00:04]} c6 {[%emt 0:00:02]} 2. d4 {[%emt 0:00:03]} d5 {[%emt 0:00:02]} 3. exd5 {[%emt 0:00:02]} cxd5 {[%emt 0:00:02]} 4. Bd3 {[%emt 0:00:03]} Nc6 {[%emt 0:03:09]} 5. c3 Nf6 {[%emt 0:00:00]} 6. Bf4 {[%emt 0:00:03]} Bg4 {[%emt 0:00:00]} 7. Qb3 {[%emt 0:00:01]} Qd7 {[%emt 0:00:00]} 8. Nd2 {[%emt 0:00:02]} e6 {[%emt 0:00:00]} 9. Ngf3 {[%emt 0:00:02]} Bd6 {[%emt 0:00:00]} 10. Bxd6 Qxd6 {[%emt 0:00:00]} 11. O-O {[%emt 0:00:04]} O-O {[%emt 0:00:00]} 12. Rae1 {[%emt 0:00:04]} Bxf3 13. Nxf3 {[%emt 0:00:01]} Rab8 {[%emt 0:00:00]} 14. Ne5 {[%emt 0:00:03]} Qc7 {[%emt 0:00:00]} 15. f4 {[%emt 0:00:02]} b5 {[%emt 0:00:00]} 16. a3 {[%emt 0:00:03]} a5 {[%emt 0:00:00]} 17. Bxb5 {[%emt 0:01:46]} Na7 {[%emt 0:00:00]} 18. a4 {[%emt 0:00:01]} Ne4 {[%emt 0:00:00]} 19. Rxe4 {[%emt 0:00:23]} dxe4 {[%emt 0:00:00]} 20. c4 {[%emt 0:00:01]} Rfd8 {[%emt 0:00:00]} 21. Qc3 {[%emt 0:00:14]} Nxb5 {[%emt 0:00:00]} 22. axb5 {[%emt 0:00:02]} Ra8 {[%emt 0:00:00]} 23. Qe3 {[%emt 0:00:25]} Qd6 {[%emt 0:00:00]} 24. Nc6 {[%emt 0:00:05]} Re8 {[%emt 0:00:00]} 25. Qxe4 {[%emt 0:00:03]} a4 {[%emt 0:00:00]} 26. f5 {[%emt 0:00:22]} exf5 27. Qxf5 {[%emt 0:00:02]} Rf8 {[%emt 0:00:07]} 28. c5 {[%emt 0:00:04]} Qh6 {[%emt 0:00:10]} 29. Kh1 {[%emt 0:00:09]} Qd2 {[%emt 0:00:07]} 30. h4 {[%emt 0:00:19]} Qxb2 {[%emt 0:00:23]} 31. h5 {[%emt 0:00:00]} h6 {[%emt 0:00:18]} 32. b6 {[%emt 0:00:00]} Qb3 {[%emt 0:00:13]} 33. Rf3 {[%emt 0:00:05]} Qc4 {[%emt 0:00:05]} 34. b7 {[%emt 0:00:04]} Rae8 {[%emt 0:00:03]} 35. b8=Q {[%emt 0:00:02]} Rxb8 {[%emt 0:00:02]} 36. Nxb8 {[%emt 0:00:02]} Rxb8 {[%emt 0:00:02]} 37. c6 {[%emt 0:00:02]} a3 {[%emt 0:00:05]} 38. c7 Qxc7 {[%emt 0:00:02]} 39. Qd3 {[%emt 0:00:07]} a2 {[%emt 0:00:02]} 40. Qa3 {[%emt 0:00:01]} Rb1+ {[%emt 0:00:04] Kh2 a1=Q+} 0-1

[Event "Djerba Festival Blitz 2025"]
[Site "Djerba"]
[Date "2025.02.21"]
[Round "4.10"]
[White "Zenaidi, Sadok"]
[Black "Bouzidi, Ahmed"]
[Result "0-1"]
[ECO "B15"]
[WhiteElo "1872"]
[BlackElo "2168"]
[PlyCount "30"]
[EventDate "2025.02.15"]
[EventType "swiss"]
[EventCountry "TUN"]
[TimeControl "180+3"]

1. e4 {[%emt 0:00:02]} c6 {[%emt 0:00:03]} 2. Nf3 {[%emt 0:00:04]} d5 {[%emt 0:00:01]} 3. Nc3 {[%emt 0:00:02]} e6 {[%emt 0:00:02]} 4. d4 {[%emt 0:00:05]} Nd7 {[%emt 0:00:02]} 5. Bg5 {[%emt 0:00:02]} Be7 {[%emt 0:00:06]} 6. Bxe7 Nxe7 {[%emt 0:00:02]} 7. Bd3 {[%emt 0:00:11]} b6 {[%emt 0:00:04]} 8. O-O {[%emt 0:00:05]} Bb7 {[%emt 0:00:02]} 9. Ne2 {[%emt 0:00:05]} dxe4 {[%emt 0:00:03]} 10. Bxe4 {[%emt 0:00:02]} Nf6 {[%emt 0:00:03]} 11. Bd3 {[%emt 0:00:08]} Qd6 {[%emt 0:00:02]} 12. c3 {[%emt 0:00:03]} O-O {[%emt 0:00:05]} 13. Ng3 {[%emt 0:00:03]} Rad8 {[%emt 0:00:05]} 14. Qc2 {[%emt 0:00:02]} c5 {[%emt 0:00:05]} 15. dxc5 {[%emt 0:00:05]} Qxd3 {[%emt 0:00:04]} 0-1

[Event "Djerba Festival Blitz 2025"]
[Site "Djerba"]
[Date "2025.02.21"]
[Round "4.11"]
[White "Bensadi, Lotfi"]
[Black "Maisuradze, Nino"]
[Result "1-0"]
[ECO "B31"]
[WhiteElo "1971"]
[BlackElo "2174"]
[PlyCount "109"]
[EventDate "2025.02.15"]
[EventType "swiss"]
[EventCountry "TUN"]
[TimeControl "180+3"]

1. e4 {[%emt 0:03:06]} c5 {[%emt 0:00:02]} 2. Nf3 {[%emt 0:00:00]} Nc6 {[%emt 0:00:03]} 3. Bb5 {[%emt 0:00:00]} g6 {[%emt 0:00:03]} 4. O-O {[%emt 0:00:00]} Bg7 {[%emt 0:00:02]} 5. Nc3 {[%emt 0:00:00]} e5 {[%emt 0:00:13]} 6. Bxc6 {[%emt 0:00:00]} bxc6 {[%emt 0:00:06]} 7. Re1 {[%emt 0:00:00]} d6 {[%emt 0:00:02]} 8. d3 {[%emt 0:00:00]} f5 {[%emt 0:00:03]} 9. exf5 {[%emt 0:00:00]} gxf5 {[%emt 0:00:04]} 10. d4 {[%emt 0:00:00]} cxd4 {[%emt 0:00:12]} 11. Nxd4 {[%emt 0:00:00]} Nf6 {[%emt 0:00:31]} 12. Nxc6 {[%emt 0:00:00]} Qc7 {[%emt 0:00:12]} 13. Nb4 {[%emt 0:00:00]} Bb7 {[%emt 0:00:29]} 14. Nbd5 {[%emt 0:00:00]} Qc6 {[%emt 0:00:20]} 15. Nxf6+ {[%emt 0:00:00]} Bxf6 {[%emt 0:00:01]} 16. Qh5+ {[%emt 0:00:00]} Ke7 {[%emt 0:00:06]} 17. f3 {[%emt 0:00:00]} Ke6 {[%emt 0:00:51]} 18. Qh3 {[%emt 0:00:00]} Rag8 {[%emt 0:00:18]} 19. Ne4 {[%emt 0:00:00]} Rg6 {[%emt 0:00:04]} 20. Ng3 {[%emt 0:00:01]} Rxg3 {[%emt 0:00:14]} 21. Qxg3 {[%emt 0:00:19]} Kf7 {[%emt 0:00:01]} 22. Qh3 {[%emt 0:00:04]} Rg8 {[%emt 0:00:02]} 23. Qxh7+ {[%emt 0:00:21]} Rg7 {[%emt 0:00:02]} 24. Qxf5 {[%emt 0:00:03]} Rg5 {[%emt 0:00:03]} 25. Qe4 {[%emt 0:00:12]} Qb6+ {[%emt 0:00:03]} 26. Qe3 {[%emt 0:00:01]} Rg8 {[%emt 0:00:06]} 27. Qxb6 {[%emt 0:00:03]} axb6 {[%emt 0:00:02]} 28. Kf2 {[%emt 0:00:06]} Bh4+ {[%emt 0:00:02]} 29. g3 {[%emt 0:00:02]} Bf6 {[%emt 0:00:02]} 30. Be3 {[%emt 0:00:05]} Rh8 {[%emt 0:00:02]} 31. h4 {[%emt 0:00:03]} b5 {[%emt 0:00:01]} 32. Rad1 {[%emt 0:00:03]} d5 {[%emt 0:00:17]} 33. f4 {[%emt 0:00:06]} d4 {[%emt 0:00:00]} 34. Bd2 {[%emt 0:00:02]} e4 {[%emt 0:00:00]} 35. Ke2 {[%emt 0:00:07]} e3 {[%emt 0:00:00]} 36. Bxe3 {[%emt 0:00:02]} Re8 {[%emt 0:00:00]} 37. Kf2 {[%emt 0:00:01]} dxe3+ {[%emt 0:00:00]} 38. Rxe3 {[%emt 0:00:02]} Ra8 {[%emt 0:00:00]} 39. Rd7+ {[%emt 0:00:03]} Kg6 {[%emt 0:00:01]} 40. Rxb7 {[%emt 0:00:02]} Bd4 {[%emt 0:00:23]} 41. Rxb5 {[%emt 0:00:03]} Rxa2 {[%emt 0:00:00]} 42. Ke2 {[%emt 0:00:04]} Bxe3 {[%emt 0:00:00]} 43. Kxe3 {[%emt 0:00:02]} Ra4 {[%emt 0:00:09]} 44. b4 {[%emt 0:00:03]} Ra2 {[%emt 0:00:00]} 45. Kd3 {[%emt 0:00:02]} Ra1 {[%emt 0:00:00]} 46. g4 {[%emt 0:00:05]} Rg1 {[%emt 0:00:00]} 47. Rg5+ {[%emt 0:00:02]} Kf6 {[%emt 0:00:00]} 48. b5 {[%emt 0:00:03]} Rh1 {[%emt 0:00:00]} 49. h5 {[%emt 0:00:02]} Rf1 {[%emt 0:00:00]} 50. Rf5+ {[%emt 0:00:02]} Ke6 {[%emt 0:00:00]} 51. b6 {[%emt 0:00:01]} Rb1 {[%emt 0:00:00]} 52. Rg5 {[%emt 0:00:07]} Kf7 {[%emt 0:00:02]} 53. Rg6 {[%emt 0:00:02]} Rb4 {[%emt 0:00:03]} 54. c4 {[%emt 0:00:02]} Rb3+ {[%emt 0:00:05]} 55. Kd4 {[%emt 0:00:02]} 1-0

[Event "Djerba Festival Blitz 2025"]
[Site "Djerba"]
[Date "2025.02.21"]
[Round "4.12"]
[White "Azreug, Lazhar"]
[Black "Boulrens, Ala Eddine"]
[Result "0-1"]
[ECO "B07"]
[WhiteElo "1793"]
[BlackElo "2121"]
[PlyCount "48"]
[EventDate "2025.02.15"]
[EventType "swiss"]
[EventCountry "TUN"]
[TimeControl "180+3"]

1. e4 {[%emt 0:00:03]} d6 {[%emt 0:03:06]} 2. d4 Nf6 {[%emt 0:00:00]} 3. Nc3 {[%emt 0:00:03]} c6 {[%emt 0:00:00]} 4. Bf4 {[%emt 0:00:02]} Nbd7 {[%emt 0:00:00]} 5. Qd2 {[%emt 0:00:02]} e5 {[%emt 0:00:00]} 6. dxe5 {[%emt 0:00:03]} dxe5 {[%emt 0:00:00]} 7. Bg5 {[%emt 0:00:06]} Be7 {[%emt 0:00:00]} 8. Nf3 {[%emt 0:00:11]} Qc7 {[%emt 0:00:00]} 9. Bc4 {[%emt 0:00:15]} b5 {[%emt 0:00:00]} 10. Bb3 {[%emt 0:00:03]} b4 {[%emt 0:00:00]} 11. Na4 {[%emt 0:00:14]} Nxe4 {[%emt 0:00:00]} 12. Qe3 {[%emt 0:00:03]} Nxg5 {[%emt 0:00:00]} 13. Nxg5 {[%emt 0:00:02]} O-O {[%emt 0:00:00]} 14. O-O-O {[%emt 0:00:11]} Nb6 {[%emt 0:00:00]} 15. Nc5 {[%emt 0:00:21]} a5 {[%emt 0:00:00]} 16. a3 {[%emt 0:00:31]} bxa3 {[%emt 0:00:00]} 17. bxa3 {[%emt 0:00:03]} a4 {[%emt 0:00:00]} 18. Ba2 {[%emt 0:00:05]} h6 {[%emt 0:00:00]} 19. Nge4 {[%emt 0:00:30]} Kh8 {[%emt 0:00:00]} 20. h4 {[%emt 0:00:16]} Ra5 {[%emt 0:00:00]} 21. Nd3 {[%emt 0:00:14]} Bxa3+ {[%emt 0:00:00]} 22. Kd2 {[%emt 0:00:20]} Be6 {[%emt 0:00:01]} 23. Nc1 {[%emt 0:00:29]} Bxa2 {[%emt 0:00:03]} 24. Nxa2 {[%emt 0:00:01]} Nc4+ {[%emt 0:00:02]} 0-1